[Event "*** SCC Grand Prix: Titled Tuesday Blitz"]
[Site "Chess.com"]
[Date "2020.10.06"]
[Round "10"]
[White "KiranManisha"]
[Black "Unkreativ3"]
[Result "1-0"]
[WhiteElo "2398"]
[BlackElo "2518"]
[TimeControl "180+1"]
[EndTime "11:57:04 PDT"]
[Termination "KiranManisha won by checkmate"]

1. e4 {[%clk 0:03:00.9]} 1... c5 {[%clk 0:03:00]} 2. Nf3 {[%clk 0:03:00.4]} 2...
Nc6 {[%clk 0:03:00.4]} 3. d4 {[%clk 0:03:00.1]} 3... cxd4 {[%clk 0:03:01.3]} 4.
Nxd4 {[%clk 0:03:00.7]} 4... g6 {[%clk 0:03:01.6]} 5. Nc3 {[%clk 0:03:00.2]}
5... Bg7 {[%clk 0:03:01.9]} 6. Nb3 {[%clk 0:03:00.2]} 6... Nf6 {[%clk
0:03:02.1]} 7. Be2 {[%clk 0:03:00.2]} 7... a5 {[%clk 0:03:02.3]} 8. a4 {[%clk
0:02:59.6]} 8... d6 {[%clk 0:03:02.7]} 9. O-O {[%clk 0:02:59.7]} 9... Be6 {[%clk
0:03:02.9]} 10. Re1 {[%clk 0:02:59.1]} 10... Nd7 {[%clk 0:03:03.1]} 11. Nd5
{[%clk 0:02:57.2]} 11... O-O {[%clk 0:03:02.3]} 12. c3 {[%clk 0:02:56.3]} 12...
Nc5 {[%clk 0:03:01.8]} 13. Nxc5 {[%clk 0:02:52]} 13... dxc5 {[%clk 0:03:02.7]}
14. Bg5 {[%clk 0:02:49.7]} 14... h6 {[%clk 0:03:01.7]} 15. Bh4 {[%clk
0:02:48.9]} 15... Re8 {[%clk 0:02:45.4]} 16. Bb5 {[%clk 0:02:48.2]} 16... Bd7
{[%clk 0:02:39.2]} 17. Bg3 {[%clk 0:02:44.9]} 17... Rc8 {[%clk 0:02:32.1]} 18.
Bf4 {[%clk 0:02:42]} 18... e6 {[%clk 0:02:28.8]} 19. Ne3 {[%clk 0:02:40.5]}
19... Qf6 {[%clk 0:01:46.7]} 20. Bg3 {[%clk 0:02:35.8]} 20... Bf8 {[%clk
0:01:23.2]} 21. Qxd7 {[%clk 0:02:27.9]} 21... Red8 {[%clk 0:00:52.8]} 22. Qxb7
{[%clk 0:02:27.2]} 22... Ne5 {[%clk 0:00:48.8]} 23. Bxe5 {[%clk 0:02:14.3]}
23... Qxe5 {[%clk 0:00:49.7]} 24. Nc4 {[%clk 0:02:14]} 24... Qf4 {[%clk
0:00:46.7]} 25. e5 {[%clk 0:02:13.2]} 25... Qh4 {[%clk 0:00:39.1]} 26. Qe4
{[%clk 0:02:09.7]} 26... Qg5 {[%clk 0:00:33.3]} 27. Qe3 {[%clk 0:02:04.6]} 27...
Qf5 {[%clk 0:00:32.3]} 28. Qf3 {[%clk 0:02:02.5]} 28... Qc2 {[%clk 0:00:31.4]}
29. Rad1 {[%clk 0:01:54.8]} 29... Rb8 {[%clk 0:00:25.5]} 30. h3 {[%clk 0:01:49]}
30... Qb3 {[%clk 0:00:24.9]} 31. Nd6 {[%clk 0:01:30.8]} 31... Bxd6 {[%clk
0:00:17.5]} 32. Rxd6 {[%clk 0:01:31.7]} 32... Qxb2 {[%clk 0:00:15.7]} 33. Red1
{[%clk 0:01:29.9]} 33... Rxd6 {[%clk 0:00:15.8]} 34. exd6 {[%clk 0:01:27.1]}
34... Rd8 {[%clk 0:00:16]} 35. Qf6 {[%clk 0:01:24.1]} 35... Rf8 {[%clk
0:00:14.4]} 36. d7 {[%clk 0:01:22.7]} 36... Qc2 {[%clk 0:00:14.4]} 37. d8=Q
{[%clk 0:01:19.3]} 37... Kh7 {[%clk 0:00:14.6]} 38. Qxf8 {[%clk 0:01:14.4]}
38... Qxd1+ {[%clk 0:00:14.9]} 39. Bf1 {[%clk 0:01:13.3]} 39... Qd4 {[%clk
0:00:13.6]} 40. Q8h8# {[%clk 0:01:12.6]} 1-0

[Event "*** SCC Grand Prix: Titled Tuesday Blitz"]
[Site "Chess.com"]
[Date "2020.10.06"]
[Round "10"]
[White "guillembaches"]
[Black "valeriocarnicelli"]
[Result "0-1"]
[WhiteElo "2417"]
[BlackElo "2548"]
[TimeControl "180+1"]
[EndTime "11:57:10 PDT"]
[Termination "valeriocarnicelli won by resignation"]

1. e4 {[%clk 0:03:00.9]} 1... c5 {[%clk 0:02:59.9]} 2. Nf3 {[%clk 0:03:01.1]}
2... Nc6 {[%clk 0:02:59.8]} 3. d4 {[%clk 0:03:00.8]} 3... cxd4 {[%clk
0:02:59.8]} 4. Nxd4 {[%clk 0:03:01.7]} 4... Nf6 {[%clk 0:02:59.7]} 5. Nc3 {[%clk
0:03:01.5]} 5... e6 {[%clk 0:03:00.1]} 6. Ndb5 {[%clk 0:03:00.9]} 6... d6 {[%clk
0:02:58.8]} 7. Bf4 {[%clk 0:03:01]} 7... e5 {[%clk 0:02:59.1]} 8. Bg5 {[%clk
0:03:01.5]} 8... a6 {[%clk 0:02:58.6]} 9. Na3 {[%clk 0:03:02]} 9... b5 {[%clk
0:02:59.1]} 10. Nd5 {[%clk 0:03:02.6]} 10... Be7 {[%clk 0:02:59.8]} 11. Bxf6
{[%clk 0:03:03.1]} 11... Bxf6 {[%clk 0:03:00.7]} 12. c4 {[%clk 0:03:03.5]} 12...
b4 {[%clk 0:03:00.4]} 13. Nc2 {[%clk 0:03:04]} 13... a5 {[%clk 0:03:01.1]} 14.
Be2 {[%clk 0:03:04.3]} 14... O-O {[%clk 0:03:00.8]} 15. O-O {[%clk 0:03:04.7]}
15... g6 {[%clk 0:02:56]} 16. Bg4 {[%clk 0:03:00.6]} 16... Be6 {[%clk
0:02:54.5]} 17. h3 {[%clk 0:02:50.5]} 17... Bxd5 {[%clk 0:02:51.6]} 18. Qxd5
{[%clk 0:02:49.3]} 18... Qb6 {[%clk 0:02:42.3]} 19. Qxd6 {[%clk 0:02:42.1]}
19... Be7 {[%clk 0:02:39.3]} 20. Qd3 {[%clk 0:02:33.1]} 20... Rad8 {[%clk
0:02:36.3]} 21. Qe2 {[%clk 0:02:33.2]} 21... Bc5 {[%clk 0:02:34.9]} 22. Rad1
{[%clk 0:02:29.2]} 22... Nd4 {[%clk 0:02:34.6]} 23. Nxd4 {[%clk 0:02:29.2]}
23... Bxd4 {[%clk 0:02:35.5]} 24. g3 {[%clk 0:02:22.8]} 24... Rd6 {[%clk
0:02:33.2]} 25. Kg2 {[%clk 0:02:22.4]} 25... Rf6 {[%clk 0:02:32.7]} 26. Rd3
{[%clk 0:02:18.4]} 26... Qc5 {[%clk 0:02:27.6]} 27. Rf3 {[%clk 0:02:15]} 27...
Rxf3 {[%clk 0:02:25.8]} 28. Bxf3 {[%clk 0:02:12]} 28... a4 {[%clk 0:02:25.5]}
29. b3 {[%clk 0:02:11.9]} 29... Ra8 {[%clk 0:02:23.6]} 30. h4 {[%clk 0:02:09.1]}
30... Ra6 {[%clk 0:02:18.1]} 31. h5 {[%clk 0:01:58.7]} 31... Qa7 {[%clk
0:02:17.4]} 32. hxg6 {[%clk 0:01:55.4]} 32... hxg6 {[%clk 0:02:11.6]} 33. c5
{[%clk 0:01:51]} 33... axb3 {[%clk 0:02:06.6]} 34. axb3 {[%clk 0:01:49.9]} 34...
Ra2 {[%clk 0:02:06.5]} 35. Qb5 {[%clk 0:01:40.2]} 35... Qxc5 {[%clk 0:01:52.9]}
36. Be2 {[%clk 0:01:20.3]} 36... Qxb5 {[%clk 0:01:42]} 37. Bxb5 {[%clk
0:01:21.2]} 37... Rb2 {[%clk 0:01:41.9]} 38. Bc4 {[%clk 0:01:20.3]} 38... Kg7
{[%clk 0:01:42.2]} 39. g4 {[%clk 0:01:09.1]} 39... f6 {[%clk 0:01:40.8]} 40. Kg3
{[%clk 0:01:01.3]} 40... Rc2 {[%clk 0:01:39.3]} 41. f3 {[%clk 0:00:59.7]} 41...
Be3 {[%clk 0:01:39.4]} 42. Rh1 {[%clk 0:00:58.1]} 42... Bf4+ {[%clk 0:01:39.2]}
43. Kh3 {[%clk 0:00:58.4]} 43... Rf2 {[%clk 0:01:24.9]} 44. Bd5 {[%clk
0:00:43.6]} 44... g5 {[%clk 0:01:16.6]} 45. Be6 {[%clk 0:00:38.7]} 45... Kf8
{[%clk 0:01:14.6]} 46. Bd5 {[%clk 0:00:37.5]} 46... Ke7 {[%clk 0:01:14.5]} 47.
Bc4 {[%clk 0:00:37.5]} 47... Kd6 {[%clk 0:01:12.1]} 48. Bd5 {[%clk 0:00:37.5]}
48... Kc5 {[%clk 0:01:11.4]} 49. Bf7 {[%clk 0:00:32.3]} 49... Kd4 {[%clk
0:01:10.4]} 50. Be6 {[%clk 0:00:32.5]} 50... Ke3 {[%clk 0:01:09.7]} 0-1

[Event "*** SCC Grand Prix: Titled Tuesday Blitz"]
[Site "Chess.com"]
[Date "2020.10.06"]
[Round "10"]
[White "Quiet_Desperation"]
[Black "novocane"]
[Result "0-1"]
[WhiteElo "1939"]
[BlackElo "2276"]
[TimeControl "180+1"]
[EndTime "11:57:11 PDT"]
[Termination "novocane won by resignation"]

1. d4 {[%clk 0:03:00.9]} 1... Nf6 {[%clk 0:02:58.8]} 2. c4 {[%clk 0:03:01.1]}
2... e6 {[%clk 0:02:57.6]} 3. Nc3 {[%clk 0:03:00.5]} 3... Bb4 {[%clk 0:02:57.6]}
4. Qc2 {[%clk 0:03:00.4]} 4... d5 {[%clk 0:02:57.6]} 5. a3 {[%clk 0:02:55.5]}
5... Bxc3+ {[%clk 0:02:54.4]} 6. bxc3 {[%clk 0:02:54.2]} 6... Nbd7 {[%clk
0:02:29.7]} 7. Nf3 {[%clk 0:02:48.1]} 7... c5 {[%clk 0:02:25.5]} 8. e3 {[%clk
0:02:39.5]} 8... b6 {[%clk 0:02:13.5]} 9. Bd3 {[%clk 0:02:38.5]} 9... Ba6 {[%clk
0:02:10.9]} 10. cxd5 {[%clk 0:02:36.5]} 10... Bxd3 {[%clk 0:02:10.4]} 11. Qxd3
{[%clk 0:02:35.3]} 11... exd5 {[%clk 0:02:10]} 12. O-O {[%clk 0:02:27.7]} 12...
O-O {[%clk 0:02:07]} 13. c4 {[%clk 0:02:23.4]} 13... cxd4 {[%clk 0:02:00.3]} 14.
Nxd4 {[%clk 0:02:22.2]} 14... dxc4 {[%clk 0:01:45.2]} 15. Qxc4 {[%clk
0:02:21.7]} 15... Nc5 {[%clk 0:01:31]} 16. Bb2 {[%clk 0:02:18.2]} 16... Rc8
{[%clk 0:01:26.5]} 17. Rad1 {[%clk 0:02:16.8]} 17... Nce4 {[%clk 0:01:19.5]} 18.
Qb3 {[%clk 0:02:05.7]} 18... Qc7 {[%clk 0:01:02.5]} 19. f3 {[%clk 0:01:56.3]}
19... Nc5 {[%clk 0:00:59.7]} 20. Qc2 {[%clk 0:01:51.9]} 20... Ne6 {[%clk
0:00:32.1]} 21. Qf2 {[%clk 0:01:38.2]} 21... Nxd4 {[%clk 0:00:20.9]} 22. Bxd4
{[%clk 0:01:39.1]} 22... Qc6 {[%clk 0:00:20.7]} 23. Qg3 {[%clk 0:01:32.8]} 23...
Qe6 {[%clk 0:00:19.8]} 24. Rc1 {[%clk 0:01:27]} 24... h6 {[%clk 0:00:19.5]} 25.
a4 {[%clk 0:01:17.6]} 25... Kh7 {[%clk 0:00:17.5]} 26. h4 {[%clk 0:01:14.1]}
26... Rfd8 {[%clk 0:00:17.1]} 27. Qf4 {[%clk 0:01:08]} 27... Nd5 {[%clk
0:00:12.3]} 28. Qg3 {[%clk 0:01:04]} 28... Nf6 {[%clk 0:00:11.5]} 29. Rfd1
{[%clk 0:00:49.5]} 29... Rxc1 {[%clk 0:00:09.1]} 30. Rxc1 {[%clk 0:00:49.4]}
30... Rxd4 {[%clk 0:00:09.3]} 31. exd4 {[%clk 0:00:47.2]} 31... Qe3+ {[%clk
0:00:09]} 32. Kh2 {[%clk 0:00:47.1]} 32... Qxc1 {[%clk 0:00:09.2]} 0-1

[Event "*** SCC Grand Prix: Titled Tuesday Blitz"]
[Site "Chess.com"]
[Date "2020.10.06"]
[Round "10"]
[White "Piotrek1979"]
[Black "tsvet2005"]
[Result "0-1"]
[WhiteElo "2496"]
[BlackElo "2689"]
[TimeControl "180+1"]
[EndTime "11:57:13 PDT"]
[Termination "tsvet2005 won by checkmate"]

1. Nf3 {[%clk 0:03:00.9]} 1... d5 {[%clk 0:03:00.2]} 2. g3 {[%clk 0:03:00.7]}
2... c6 {[%clk 0:03:00.8]} 3. Bg2 {[%clk 0:03:01.4]} 3... Bg4 {[%clk 0:03:00.8]}
4. O-O {[%clk 0:03:02.3]} 4... Nd7 {[%clk 0:03:00]} 5. d4 {[%clk 0:03:01.3]}
5... e6 {[%clk 0:03:00.2]} 6. c4 {[%clk 0:03:01.5]} 6... Be7 {[%clk 0:03:00.5]}
7. Nbd2 {[%clk 0:03:00.8]} 7... Ngf6 {[%clk 0:03:00.3]} 8. Qb3 {[%clk
0:03:01.5]} 8... Qb6 {[%clk 0:02:59]} 9. c5 {[%clk 0:03:01]} 9... Qa6 {[%clk
0:02:59.3]} 10. Re1 {[%clk 0:03:00.1]} 10... b6 {[%clk 0:02:59.7]} 11. cxb6
{[%clk 0:02:57.6]} 11... axb6 {[%clk 0:03:00.6]} 12. Ne5 {[%clk 0:02:55.6]}
12... Nxe5 {[%clk 0:03:00.2]} 13. dxe5 {[%clk 0:02:56.5]} 13... Nd7 {[%clk
0:03:00.8]} 14. e4 {[%clk 0:02:56]} 14... O-O {[%clk 0:02:55.3]} 15. exd5 {[%clk
0:02:50.6]} 15... exd5 {[%clk 0:02:54]} 16. Qc2 {[%clk 0:02:37.1]} 16... Rac8
{[%clk 0:02:35.6]} 17. Nf3 {[%clk 0:02:33.3]} 17... Bh5 {[%clk 0:02:29.5]} 18.
Bf4 {[%clk 0:02:25]} 18... Bg6 {[%clk 0:02:28.5]} 19. Qd2 {[%clk 0:02:25.1]}
19... Nc5 {[%clk 0:02:28]} 20. Nd4 {[%clk 0:02:13.8]} 20... Ne4 {[%clk
0:02:28.2]} 21. Qe2 {[%clk 0:02:12.9]} 21... Qa8 {[%clk 0:02:17.4]} 22. a3
{[%clk 0:02:10.7]} 22... c5 {[%clk 0:02:09.6]} 23. Nb5 {[%clk 0:02:05.5]} 23...
Rfe8 {[%clk 0:02:08.1]} 24. f3 {[%clk 0:02:01.2]} 24... Ng5 {[%clk 0:02:03.2]}
25. Bxg5 {[%clk 0:02:01.3]} 25... Bxg5 {[%clk 0:02:04.1]} 26. Nd6 {[%clk
0:02:01.6]} 26... Qa4 {[%clk 0:01:50.3]} 27. f4 {[%clk 0:01:56.4]} 27... Be7
{[%clk 0:01:50.2]} 28. Nxc8 {[%clk 0:01:50.6]} 28... Rxc8 {[%clk 0:01:51.1]} 29.
Bxd5 {[%clk 0:01:50.4]} 29... Qd4+ {[%clk 0:01:50.5]} 30. Qf2 {[%clk 0:01:47.6]}
30... Qxd5 {[%clk 0:01:51]} 31. f5 {[%clk 0:01:42.3]} 31... Bh5 {[%clk 0:01:33]}
32. f6 {[%clk 0:01:41.6]} 32... Bf8 {[%clk 0:01:32.6]} 33. Qf5 {[%clk
0:01:29.1]} 33... Qd4+ {[%clk 0:01:32.3]} 34. Kg2 {[%clk 0:01:27.9]} 34... Bg4
{[%clk 0:01:30.8]} 35. Qf2 {[%clk 0:01:20.1]} 35... Qd5+ {[%clk 0:01:30.2]} 36.
Kg1 {[%clk 0:01:19.8]} 36... c4 {[%clk 0:01:28.8]} 37. Re3 {[%clk 0:00:32]}
37... Bc5 {[%clk 0:01:26.7]} 38. Rae1 {[%clk 0:00:32.9]} 38... Bh3 {[%clk
0:01:15.8]} 39. fxg7 {[%clk 0:00:20.4]} 39... Re8 {[%clk 0:01:11.2]} 40. e6
{[%clk 0:00:15.4]} 40... Rxe6 {[%clk 0:01:04.5]} 41. Qf4 {[%clk 0:00:07.7]}
41... Qg2# {[%clk 0:01:03.8]} 0-1

[Event "*** SCC Grand Prix: Titled Tuesday Blitz"]
[Site "Chess.com"]
[Date "2020.10.06"]
[Round "10"]
[White "TrimitziosP7"]
[Black "tornikesanikidze"]
[Result "1-0"]
[WhiteElo "2821"]
[BlackElo "2665"]
[TimeControl "180+1"]
[EndTime "11:57:14 PDT"]
[Termination "TrimitziosP7 won by resignation"]

1. e4 {[%clk 0:03:00.9]} 1... e5 {[%clk 0:02:59.3]} 2. Bc4 {[%clk 0:03:00.3]}
2... Nf6 {[%clk 0:02:58.6]} 3. d4 {[%clk 0:02:58.5]} 3... exd4 {[%clk 0:02:54]}
4. Nf3 {[%clk 0:02:57.6]} 4... Nc6 {[%clk 0:02:52.2]} 5. O-O {[%clk 0:02:52.6]}
5... Nxe4 {[%clk 0:02:51.9]} 6. Re1 {[%clk 0:02:51.9]} 6... d5 {[%clk
0:02:52.2]} 7. Bxd5 {[%clk 0:02:49.1]} 7... Qxd5 {[%clk 0:02:53.1]} 8. Nc3
{[%clk 0:02:47.7]} 8... Qa5 {[%clk 0:02:52.8]} 9. Nxe4 {[%clk 0:02:44.4]} 9...
Be6 {[%clk 0:02:53]} 10. Neg5 {[%clk 0:02:42]} 10... O-O-O {[%clk 0:02:52.5]}
11. Nxe6 {[%clk 0:02:41.7]} 11... fxe6 {[%clk 0:02:52.5]} 12. Rxe6 {[%clk
0:02:42]} 12... h6 {[%clk 0:02:47.4]} 13. Bd2 {[%clk 0:02:34.6]} 13... Qh5
{[%clk 0:02:22.7]} 14. Qe2 {[%clk 0:02:29.4]} 14... Bd6 {[%clk 0:02:22.3]} 15.
Re1 {[%clk 0:02:16.5]} 15... d3 {[%clk 0:02:19.5]} 16. Qe4 {[%clk 0:02:14.3]}
16... dxc2 {[%clk 0:01:52.5]} 17. Qxc2 {[%clk 0:02:15.2]} 17... Rhf8 {[%clk
0:01:41.7]} 18. R6e4 {[%clk 0:01:55.3]} 18... Rxf3 {[%clk 0:00:59]} 19. gxf3
{[%clk 0:01:56.2]} 19... Nd4 {[%clk 0:00:39.2]} 20. Rxd4 {[%clk 0:01:49.1]}
20... Bxh2+ {[%clk 0:00:33]} 21. Kg2 {[%clk 0:01:49]} 21... Rxd4 {[%clk
0:00:32.7]} 22. Rh1 {[%clk 0:01:45.8]} 22... Qd5 {[%clk 0:00:31.2]} 23. Be3
{[%clk 0:01:41.9]} 23... Rg4+ {[%clk 0:00:30.8]} 24. Kf1 {[%clk 0:01:39.2]}
24... Rh4 {[%clk 0:00:19.2]} 25. Qg6 {[%clk 0:01:25.8]} 25... b6 {[%clk
0:00:11.5]} 26. Kg2 {[%clk 0:01:20.6]} 26... Bg3 {[%clk 0:00:10.1]} 27. Qxg3
{[%clk 0:01:17.4]} 27... Rxh1 {[%clk 0:00:09.3]} 28. Kxh1 {[%clk 0:01:18.3]}
28... Qxa2 {[%clk 0:00:09.6]} 29. Qxg7 {[%clk 0:01:16.4]} 29... h5 {[%clk
0:00:09.7]} 30. f4 {[%clk 0:01:12.1]} 30... Qd5+ {[%clk 0:00:09.2]} 31. Kh2
{[%clk 0:01:11.9]} 31... a5 {[%clk 0:00:09.3]} 32. Qg2 {[%clk 0:01:10.3]} 32...
Qf5 {[%clk 0:00:08.6]} 33. Qh3 {[%clk 0:01:09.7]} 33... Qg4 {[%clk 0:00:08.7]}
34. Qxg4+ {[%clk 0:01:09.4]} 34... hxg4 {[%clk 0:00:09.6]} 35. Kg3 {[%clk
0:01:10.3]} 35... c5 {[%clk 0:00:09.2]} 36. Kxg4 {[%clk 0:01:10.5]} 36... Kd7
{[%clk 0:00:10.1]} 37. Kf5 {[%clk 0:01:10.6]} 37... a4 {[%clk 0:00:10.6]} 38.
Bc1 {[%clk 0:01:09.5]} 38... Kd6 {[%clk 0:00:10.2]} 39. Kg6 {[%clk 0:01:09.6]}
39... c4 {[%clk 0:00:09.7]} 40. f5 {[%clk 0:01:09.8]} 40... b5 {[%clk
0:00:10.6]} 41. f6 {[%clk 0:01:10]} 41... b4 {[%clk 0:00:11.5]} 42. f7 {[%clk
0:01:10.6]} 1-0

[Event "*** SCC Grand Prix: Titled Tuesday Blitz"]
[Site "Chess.com"]
[Date "2020.10.06"]
[Round "10"]
[White "WiktoriaPOL"]
[Black "SergeyShtyka"]
[Result "0-1"]
[WhiteElo "2054"]
[BlackElo "2234"]
[TimeControl "180+1"]
[EndTime "11:57:17 PDT"]
[Termination "SergeyShtyka won by resignation"]

1. c4 {[%clk 0:03:00.9]} 1... c5 {[%clk 0:02:56]} 2. Nf3 {[%clk 0:03:00.2]} 2...
Nf6 {[%clk 0:02:54.5]} 3. Nc3 {[%clk 0:02:59.3]} 3... g6 {[%clk 0:02:54.6]} 4.
g3 {[%clk 0:02:48.5]} 4... Bg7 {[%clk 0:02:54.4]} 5. Bg2 {[%clk 0:02:48.4]} 5...
O-O {[%clk 0:02:54.7]} 6. O-O {[%clk 0:02:48.7]} 6... d6 {[%clk 0:02:54.7]} 7.
e3 {[%clk 0:02:45.9]} 7... Nc6 {[%clk 0:02:54.9]} 8. d4 {[%clk 0:02:46]} 8...
cxd4 {[%clk 0:02:55.1]} 9. exd4 {[%clk 0:02:46.9]} 9... Bg4 {[%clk 0:02:45.1]}
10. h3 {[%clk 0:02:42.8]} 10... Bxf3 {[%clk 0:02:43.7]} 11. Bxf3 {[%clk
0:02:41.1]} 11... Rc8 {[%clk 0:02:44.2]} 12. b3 {[%clk 0:02:34.6]} 12... e5
{[%clk 0:02:39.9]} 13. d5 {[%clk 0:02:33.7]} 13... Ne7 {[%clk 0:02:39.4]} 14.
Bg5 {[%clk 0:02:30.2]} 14... h6 {[%clk 0:02:34.3]} 15. Be3 {[%clk 0:02:29.6]}
15... Nf5 {[%clk 0:02:29]} 16. Bg2 {[%clk 0:02:22.9]} 16... Nxe3 {[%clk
0:02:28.1]} 17. fxe3 {[%clk 0:02:23.7]} 17... e4 {[%clk 0:02:23.9]} 18. Rc1
{[%clk 0:02:19.5]} 18... Qe7 {[%clk 0:02:23.6]} 19. Nb5 {[%clk 0:01:55.4]} 19...
Qe5 {[%clk 0:02:15.1]} 20. g4 {[%clk 0:01:47.6]} 20... h5 {[%clk 0:02:08]} 21.
gxh5 {[%clk 0:01:44.6]} 21... Nxh5 {[%clk 0:02:06.5]} 22. Qd4 {[%clk 0:01:39]}
22... Ng3 {[%clk 0:01:55.7]} 23. Qxe5 {[%clk 0:01:35.9]} 23... Bxe5 {[%clk
0:01:55]} 24. Rf2 {[%clk 0:01:35.9]} 24... a6 {[%clk 0:01:50.4]} 25. Nd4 {[%clk
0:01:33.5]} 25... Bxd4 {[%clk 0:01:21.5]} 26. exd4 {[%clk 0:01:34.4]} 26... f5
{[%clk 0:01:21.8]} 27. c5 {[%clk 0:01:28.3]} 27... e3 {[%clk 0:01:16.9]} 28.
Rfc2 {[%clk 0:01:26.2]} 28... f4 {[%clk 0:01:14.6]} 29. Bf3 {[%clk 0:01:25.6]}
29... Nf5 {[%clk 0:01:12.8]} 30. Rc4 {[%clk 0:01:17.8]} 30... Kg7 {[%clk
0:00:55.6]} 31. c6 {[%clk 0:01:14.2]} 31... b5 {[%clk 0:00:54.3]} 32. Rb4 {[%clk
0:01:04.9]} 32... Rc7 {[%clk 0:00:53.3]} 33. a4 {[%clk 0:01:02.5]} 33... a5
{[%clk 0:00:48.6]} 34. Rxb5 {[%clk 0:01:02.2]} 34... Nxd4 {[%clk 0:00:48.6]} 35.
Rb7 {[%clk 0:01:02.2]} 35... Nxf3+ {[%clk 0:00:48.2]} 36. Kg2 {[%clk 0:01:00.4]}
36... Nh4+ {[%clk 0:00:48.2]} 37. Kh2 {[%clk 0:00:58.5]} 37... Rff7 {[%clk
0:00:45.5]} 38. Rb5 {[%clk 0:00:57.2]} 38... f3 {[%clk 0:00:44.2]} 39. Kg3
{[%clk 0:00:54.8]} 39... g5 {[%clk 0:00:38.1]} 40. Rxa5 {[%clk 0:00:53.9]} 40...
f2 {[%clk 0:00:37.2]} 41. Rf1 {[%clk 0:00:36.7]} 41... e2 {[%clk 0:00:36]} 42.
Rxf2 {[%clk 0:00:36.9]} 42... e1=Q {[%clk 0:00:35.4]} 0-1

[Event "*** SCC Grand Prix: Titled Tuesday Blitz"]
[Site "Chess.com"]
[Date "2020.10.06"]
[Round "10"]
[White "SophieNikoladze"]
[Black "ozates"]
[Result "1-0"]
[WhiteElo "2282"]
[BlackElo "2364"]
[TimeControl "180+1"]
[EndTime "11:57:18 PDT"]
[Termination "SophieNikoladze won by resignation"]

1. d4 {[%clk 0:03:00.9]} 1... d5 {[%clk 0:02:53.6]} 2. Nf3 {[%clk 0:03:00.7]}
2... Nf6 {[%clk 0:02:52.8]} 3. e3 {[%clk 0:03:00.6]} 3... c5 {[%clk 0:02:52.1]}
4. b3 {[%clk 0:02:59.5]} 4... Nc6 {[%clk 0:02:52.3]} 5. Bd3 {[%clk 0:02:59.6]}
5... cxd4 {[%clk 0:02:52.9]} 6. exd4 {[%clk 0:02:59]} 6... Bg4 {[%clk
0:02:53.4]} 7. Bb2 {[%clk 0:02:58.1]} 7... e6 {[%clk 0:02:53.6]} 8. O-O {[%clk
0:02:57.7]} 8... Bd6 {[%clk 0:02:53.9]} 9. a3 {[%clk 0:02:57.6]} 9... Qc7 {[%clk
0:02:53.5]} 10. h3 {[%clk 0:02:56.9]} 10... Bh5 {[%clk 0:02:53]} 11. Nbd2 {[%clk
0:02:56.3]} 11... g5 {[%clk 0:02:53.1]} 12. Re1 {[%clk 0:02:55.9]} 12... g4
{[%clk 0:02:52.7]} 13. hxg4 {[%clk 0:02:52.5]} 13... Nxg4 {[%clk 0:02:52.7]} 14.
c4 {[%clk 0:02:49.6]} 14... Bh2+ {[%clk 0:02:52.4]} 15. Kf1 {[%clk 0:02:49.2]}
15... Bg3 {[%clk 0:02:33.6]} 16. cxd5 {[%clk 0:02:37.4]} 16... Bxf2 {[%clk
0:01:54]} 17. dxc6 {[%clk 0:02:33]} 17... Qg3 {[%clk 0:01:37.5]} 18. cxb7 {[%clk
0:02:22.2]} 18... Rb8 {[%clk 0:01:34.1]} 19. Ne4 {[%clk 0:02:21.2]} 19... Nh2+
{[%clk 0:01:17.5]} 20. Nxh2 {[%clk 0:02:20.6]} 20... Qxh2 {[%clk 0:01:18.4]} 21.
Nxf2 {[%clk 0:02:12.9]} 21... Bxd1 {[%clk 0:01:17.6]} 22. Raxd1 {[%clk
0:02:12.5]} 22... Rg8 {[%clk 0:01:15.3]} 23. Be4 {[%clk 0:02:12]} 23... h5
{[%clk 0:01:13.1]} 24. Bf3 {[%clk 0:02:10]} 24... h4 {[%clk 0:01:11.6]} 25. d5
{[%clk 0:01:57.7]} 25... Rxb7 {[%clk 0:00:58.5]} 26. dxe6 {[%clk 0:01:57.5]}
26... Rxb3 {[%clk 0:00:58.2]} 27. exf7+ {[%clk 0:01:57.1]} 27... Kxf7 {[%clk
0:00:58.5]} 28. Bd5+ {[%clk 0:01:56.4]} 28... Kf8 {[%clk 0:00:58.5]} 29. Bxb3
{[%clk 0:01:50.9]} 29... Qxg2+ {[%clk 0:00:58.2]} 30. Ke2 {[%clk 0:01:50.5]}
30... Rg3 {[%clk 0:00:55.5]} 31. Bd5 {[%clk 0:01:43.9]} 31... Qh2 {[%clk
0:00:36.9]} 32. Rh1 {[%clk 0:01:43.3]} 32... Re3+ {[%clk 0:00:36.9]} 33. Kxe3
{[%clk 0:01:41.2]} 33... Qg3+ {[%clk 0:00:36.3]} 34. Bf3 {[%clk 0:01:40.2]}
34... Qg5+ {[%clk 0:00:35.3]} 35. Ke2 {[%clk 0:01:39.1]} 35... Qb5+ {[%clk
0:00:35.1]} 36. Nd3 {[%clk 0:01:36.4]} 36... Qe8+ {[%clk 0:00:32.1]} 37. Kf2
{[%clk 0:01:35.9]} 37... Qe7 {[%clk 0:00:30.3]} 38. Rde1 {[%clk 0:01:34.8]}
38... Qd6 {[%clk 0:00:25.7]} 39. Re3 {[%clk 0:01:29.5]} 39... Qg3+ {[%clk
0:00:23.6]} 40. Ke2 {[%clk 0:01:29.7]} 40... Qg5 {[%clk 0:00:19.7]} 41. Be5
{[%clk 0:01:28.4]} 41... a5 {[%clk 0:00:17.8]} 42. Bd6+ {[%clk 0:01:26.4]} 42...
Kf7 {[%clk 0:00:18.1]} 43. Re7+ {[%clk 0:01:23.7]} 43... Kf6 {[%clk 0:00:16.5]}
44. Re5 {[%clk 0:01:21.4]} 44... Qh6 {[%clk 0:00:11.8]} 45. Be7+ {[%clk
0:01:18.8]} 45... Kf7 {[%clk 0:00:11.1]} 46. Bd5+ {[%clk 0:01:18.5]} 46... Kg7
{[%clk 0:00:05.1]} 47. Rg1+ {[%clk 0:01:17.5]} 1-0